[Event "Late-Titled-Tuesday-Blitz-September-19-2023"]
[Site "Chess.com"]
[Date "2023.09.19"]
[Round "3"]
[White "Hoshka"]
[Black "Chessbard1972"]
[Result "0-1"]
[WhiteElo "2051"]
[BlackElo "2369"]
[TimeControl "180+1"]
[EndTime "14:25:30 PDT"]
[Termination "Chessbard1972 won by resignation"]

1. d4 {[%clk 0:03:00]} 1... d5 {[%clk 0:02:59.5]} 2. c4 {[%clk 0:02:59.8]} 2...
e6 {[%clk 0:02:59.2]} 3. g3 {[%clk 0:02:59.6]} 3... c5 {[%clk 0:02:59.3]} 4.
cxd5 {[%clk 0:02:58.7]} 4... exd5 {[%clk 0:02:56.8]} 5. Nf3 {[%clk 0:02:58.3]}
5... Nc6 {[%clk 0:02:56.5]} 6. Bg2 {[%clk 0:02:57.7]} 6... Nf6 {[%clk
0:02:57.4]} 7. O-O {[%clk 0:02:57.4]} 7... Be7 {[%clk 0:02:58.3]} 8. Nc3 {[%clk
0:02:57.3]} 8... O-O {[%clk 0:02:59.2]} 9. dxc5 {[%clk 0:02:55.9]} 9... Bxc5
{[%clk 0:02:58.8]} 10. Na4 {[%clk 0:02:55.8]} 10... Be7 {[%clk 0:02:58.7]} 11.
Be3 {[%clk 0:02:56.3]} 11... Ng4 {[%clk 0:02:56.7]} 12. Bc5 {[%clk 0:02:55.5]}
12... Re8 {[%clk 0:02:45.9]} 13. Rc1 {[%clk 0:02:50.1]} 13... Bf5 {[%clk
0:02:42.2]} 14. Re1 {[%clk 0:02:33.1]} 14... Bf6 {[%clk 0:02:35.9]} 15. Nd4
{[%clk 0:02:26.2]} 15... Bg6 {[%clk 0:02:33.4]} 16. Nc3 {[%clk 0:02:14]} 16...
Be4 {[%clk 0:02:16.6]} 17. Nxc6 {[%clk 0:02:01.8]} 17... bxc6 {[%clk 0:02:14.8]}
18. Nxe4 {[%clk 0:01:55.2]} 18... dxe4 {[%clk 0:02:14.5]} 19. Qc2 {[%clk
0:01:45.1]} 19... e3 {[%clk 0:01:46.7]} 20. fxe3 {[%clk 0:01:34.7]} 20... Nxe3
{[%clk 0:01:39.2]} 21. Bxe3 {[%clk 0:01:10.1]} 21... Rxe3 {[%clk 0:01:37.2]} 22.
Qxc6 {[%clk 0:01:03.9]} 22... Rb8 {[%clk 0:01:35.2]} 23. b3 {[%clk 0:00:47.6]}
23... Bd4 {[%clk 0:01:32.4]} 24. Kh1 {[%clk 0:00:46.2]} 24... Qg5 {[%clk
0:01:18.1]} 25. Qd5 {[%clk 0:00:28.9]} 25... Be5 {[%clk 0:01:06.7]} 26. Rc7
{[%clk 0:00:27.7]} 26... Rf8 {[%clk 0:01:01.6]} 27. Re7 {[%clk 0:00:25.3]} 27...
Qxe7 {[%clk 0:01:00.1]} 0-1

[Event "Late-Titled-Tuesday-Blitz-September-19-2023"]
[Site "Chess.com"]
[Date "2023.09.19"]
[Round "3"]
[White "Zhigalko_Sergei"]
[Black "ural58"]
[Result "1-0"]
[WhiteElo "2837"]
[BlackElo "2558"]
[TimeControl "180+1"]
[EndTime "14:25:39 PDT"]
[Termination "Zhigalko_Sergei won by resignation"]

1. e4 {[%clk 0:03:00.9]} 1... d5 {[%clk 0:02:54.9]} 2. exd5 {[%clk 0:03:00.9]}
2... Qxd5 {[%clk 0:02:54.5]} 3. Nc3 {[%clk 0:03:01.2]} 3... Qa5 {[%clk
0:02:53.5]} 4. d4 {[%clk 0:03:01.3]} 4... Nf6 {[%clk 0:02:53.5]} 5. Nf3 {[%clk
0:03:01.7]} 5... Nc6 {[%clk 0:02:53.5]} 6. Bb5 {[%clk 0:03:01.2]} 6... Ne4
{[%clk 0:02:52.9]} 7. a4 {[%clk 0:03:00.7]} 7... Nxc3 {[%clk 0:02:51.5]} 8. bxc3
{[%clk 0:03:00.8]} 8... a6 {[%clk 0:02:51.7]} 9. Bxc6+ {[%clk 0:03:00.7]} 9...
bxc6 {[%clk 0:02:52]} 10. O-O {[%clk 0:02:59.7]} 10... Bg4 {[%clk 0:02:51.5]}
11. h3 {[%clk 0:02:54.7]} 11... Bxf3 {[%clk 0:02:51.2]} 12. Qxf3 {[%clk
0:02:54.7]} 12... Qd5 {[%clk 0:02:51.5]} 13. Qg3 {[%clk 0:02:51.5]} 13... e6
{[%clk 0:02:48.3]} 14. Bf4 {[%clk 0:02:35.1]} 14... h5 {[%clk 0:01:58.8]} 15.
Bxc7 {[%clk 0:02:28.3]} 15... h4 {[%clk 0:01:58.7]} 16. Qd3 {[%clk 0:02:26.7]}
16... Rh5 {[%clk 0:01:43.2]} 17. Rab1 {[%clk 0:02:05.7]} 17... Rg5 {[%clk
0:01:42.7]} 18. f3 {[%clk 0:02:05.4]} 18... Bd6 {[%clk 0:01:35.4]} 19. c4 {[%clk
0:01:22.4]} 19... Rxg2+ {[%clk 0:01:35.2]} 20. Kxg2 {[%clk 0:01:23.3]} 20...
Qg5+ {[%clk 0:01:35.4]} 21. Kh1 {[%clk 0:01:23.2]} 21... Bxc7 {[%clk 0:01:36]}
22. f4 {[%clk 0:01:20.3]} 22... Qf6 {[%clk 0:01:09.1]} 23. Qe4 {[%clk
0:01:16.7]} 23... Kd7 {[%clk 0:00:57]} 24. d5 {[%clk 0:01:10.4]} 24... exd5
{[%clk 0:00:42.5]} 25. cxd5 {[%clk 0:01:11.3]} 25... c5 {[%clk 0:00:20.3]} 26.
d6 {[%clk 0:01:10.9]} 26... Re8 {[%clk 0:00:20.5]} 27. Qb7 {[%clk 0:01:07.7]}
27... Kxd6 {[%clk 0:00:17.6]} 28. Rbd1+ {[%clk 0:01:02.7]} 28... Ke7 {[%clk
0:00:17.7]} 29. Qxc7+ {[%clk 0:01:01.8]} 29... Kf8 {[%clk 0:00:17.6]} 30. Qd6+
{[%clk 0:00:58.8]} 1-0

[Event "Late-Titled-Tuesday-Blitz-September-19-2023"]
[Site "Chess.com"]
[Date "2023.09.19"]
[Round "3"]
[White "angryspacevoid"]
[Black "Fy_Rakotomaharo"]
[Result "1/2-1/2"]
[WhiteElo "2503"]
[BlackElo "2718"]
[TimeControl "180+1"]
[EndTime "14:25:40 PDT"]
[Termination "Game drawn by repetition"]

1. e4 {[%clk 0:03:00.9]} 1... c5 {[%clk 0:03:00.3]} 2. c3 {[%clk 0:02:59.4]}
2... Nf6 {[%clk 0:03:00.3]} 3. e5 {[%clk 0:02:59.3]} 3... Nd5 {[%clk 0:03:01]}
4. Nf3 {[%clk 0:02:59.9]} 4... e6 {[%clk 0:03:01.3]} 5. d4 {[%clk 0:03:00]} 5...
cxd4 {[%clk 0:03:02.2]} 6. Bc4 {[%clk 0:02:59.8]} 6... d6 {[%clk 0:03:00.7]} 7.
Bg5 {[%clk 0:02:52.6]} 7... Qb6 {[%clk 0:02:58.6]} 8. cxd4 {[%clk 0:02:50]} 8...
Qxb2 {[%clk 0:02:58.6]} 9. Nbd2 {[%clk 0:02:50.3]} 9... Nc6 {[%clk 0:02:55.2]}
10. Rb1 {[%clk 0:02:46.7]} 10... Qa3 {[%clk 0:02:53.5]} 11. Rb3 {[%clk
0:02:33.8]} 11... Qa5 {[%clk 0:02:51.8]} 12. O-O {[%clk 0:02:22]} 12... dxe5
{[%clk 0:02:35.9]} 13. Re1 {[%clk 0:02:21.3]} 13... Be7 {[%clk 0:02:29.2]} 14.
Rb5 {[%clk 0:02:00.4]} 14... Nc3 {[%clk 0:02:25.4]} 15. Qb3 {[%clk 0:01:10.2]}
15... Nxb5 {[%clk 0:02:23.6]} 16. Bxb5 {[%clk 0:01:03.3]} 16... Bxg5 {[%clk
0:02:19.6]} 17. Rxe5 {[%clk 0:01:00.5]} 17... Qd8 {[%clk 0:02:00.7]} 18. Rxg5
{[%clk 0:00:56.6]} 18... O-O {[%clk 0:01:59.8]} 19. Qe3 {[%clk 0:00:45.5]} 19...
Ne7 {[%clk 0:01:44.9]} 20. Bd3 {[%clk 0:00:39.4]} 20... Nf5 {[%clk 0:01:32.3]}
21. Qf4 {[%clk 0:00:33.9]} 21... h6 {[%clk 0:01:23.2]} 22. Rg4 {[%clk
0:00:29.2]} 22... Qd6 {[%clk 0:01:22.6]} 23. Ne5 {[%clk 0:00:19.4]} 23... f6
{[%clk 0:01:23.2]} 24. Bxf5 {[%clk 0:00:16.7]} 24... exf5 {[%clk 0:01:07.7]} 25.
Rxg7+ {[%clk 0:00:16.2]} 25... Kxg7 {[%clk 0:01:07.2]} 26. Qg3+ {[%clk
0:00:16.1]} 26... Kh7 {[%clk 0:00:54.7]} 27. Qg6+ {[%clk 0:00:15.7]} 27... Kh8
{[%clk 0:00:55.3]} 28. Qxh6+ {[%clk 0:00:16.2]} 28... Kg8 {[%clk 0:00:56.2]} 29.
Qg6+ {[%clk 0:00:16.7]} 29... Kh8 {[%clk 0:00:56.9]} 30. Qh6+ {[%clk 0:00:15.2]}
30... Kg8 {[%clk 0:00:56.9]} 31. Qg6+ {[%clk 0:00:15.8]} 31... Kh8 {[%clk
0:00:57.5]} 32. Qh6+ {[%clk 0:00:16.5]} 1/2-1/2

[Event "Late-Titled-Tuesday-Blitz-September-19-2023"]
[Site "Chess.com"]
[Date "2023.09.19"]
[Round "3"]
[White "Defend1r"]
[Black "rookoco"]
[Result "1-0"]
[WhiteElo "2506"]
[BlackElo "2696"]
[TimeControl "180+1"]
[EndTime "14:25:50 PDT"]
[Termination "Defend1r won by resignation"]

1. e4 {[%clk 0:03:00.9]} 1... c5 {[%clk 0:02:55.2]} 2. Nf3 {[%clk 0:03:01.1]}
2... d6 {[%clk 0:02:54.7]} 3. Bb5+ {[%clk 0:03:00.1]} 3... Bd7 {[%clk
0:02:48.9]} 4. Bxd7+ {[%clk 0:02:59.8]} 4... Nxd7 {[%clk 0:02:49.8]} 5. c4
{[%clk 0:02:59.8]} 5... Ndf6 {[%clk 0:02:46.6]} 6. Nc3 {[%clk 0:02:58.8]} 6...
e6 {[%clk 0:02:46.3]} 7. d4 {[%clk 0:02:58.8]} 7... cxd4 {[%clk 0:02:43.7]} 8.
Nxd4 {[%clk 0:02:57.3]} 8... Ne7 {[%clk 0:02:44.3]} 9. Be3 {[%clk 0:02:30.1]}
9... Nc6 {[%clk 0:02:39.9]} 10. O-O {[%clk 0:02:29.2]} 10... Be7 {[%clk
0:02:38]} 11. h3 {[%clk 0:02:29.3]} 11... O-O {[%clk 0:02:37.4]} 12. Qe2 {[%clk
0:02:19.2]} 12... Rc8 {[%clk 0:02:36.1]} 13. Rfd1 {[%clk 0:02:18.7]} 13... Nd7
{[%clk 0:02:33.8]} 14. Ndb5 {[%clk 0:02:13]} 14... Nce5 {[%clk 0:02:25.9]} 15.
Nxa7 {[%clk 0:02:03.8]} 15... Rxc4 {[%clk 0:02:21.5]} 16. f4 {[%clk 0:02:03.6]}
16... Rxc3 {[%clk 0:02:18.4]} 17. bxc3 {[%clk 0:01:59.7]} 17... Ng6 {[%clk
0:02:17.4]} 18. Nb5 {[%clk 0:01:56.5]} 18... Nf6 {[%clk 0:02:11.8]} 19. Qd3
{[%clk 0:01:39.6]} 19... Qa5 {[%clk 0:02:05.8]} 20. c4 {[%clk 0:01:32.2]} 20...
Rd8 {[%clk 0:02:01.3]} 21. a4 {[%clk 0:01:22.8]} 21... h5 {[%clk 0:01:57.1]} 22.
Qd4 {[%clk 0:01:16]} 22... h4 {[%clk 0:01:45.6]} 23. Qb6 {[%clk 0:00:39.3]}
23... Qb4 {[%clk 0:01:44.6]} 24. Nxd6 {[%clk 0:00:27.1]} 24... Qxb6 {[%clk
0:01:34.5]} 25. Bxb6 {[%clk 0:00:26.7]} 25... Rxd6 {[%clk 0:01:34.9]} 26. Rxd6
{[%clk 0:00:26.5]} 26... Bxd6 {[%clk 0:01:35.8]} 27. e5 {[%clk 0:00:27]} 27...
Nxe5 {[%clk 0:01:32.3]} 28. fxe5 {[%clk 0:00:26.4]} 28... Bxe5 {[%clk
0:01:33.2]} 29. Rd1 {[%clk 0:00:25.8]} 29... g5 {[%clk 0:01:29.9]} 30. c5 {[%clk
0:00:24.1]} 30... Nd5 {[%clk 0:01:24]} 31. a5 {[%clk 0:00:23.3]} 31... f5 {[%clk
0:01:21.9]} 32. Rb1 {[%clk 0:00:20.1]} 32... Bd4+ {[%clk 0:01:06.7]} 33. Kh1
{[%clk 0:00:20.1]} 33... g4 {[%clk 0:01:06.4]} 34. c6 {[%clk 0:00:18.9]} 34...
Bxb6 {[%clk 0:01:02.5]} 35. axb6 {[%clk 0:00:07.6]} 1-0

[Event "Late-Titled-Tuesday-Blitz-September-19-2023"]
[Site "Chess.com"]
[Date "2023.09.19"]
[Round "3"]
[White "infinitegiantkiller"]
[Black "Ramosha"]
[Result "0-1"]
[WhiteElo "2463"]
[BlackElo "2637"]
[TimeControl "180+1"]
[EndTime "14:25:50 PDT"]
[Termination "Ramosha won by checkmate"]

1. Nf3 {[%clk 0:02:58.1]} 1... Nc6 {[%clk 0:02:58.6]} 2. g3 {[%clk 0:02:59]}
2... e5 {[%clk 0:02:58.4]} 3. Bg2 {[%clk 0:02:59.9]} 3... e4 {[%clk 0:02:58.2]}
4. Ng1 {[%clk 0:03:00.1]} 4... Nf6 {[%clk 0:02:58.3]} 5. d3 {[%clk 0:03:00.8]}
5... exd3 {[%clk 0:02:58.8]} 6. cxd3 {[%clk 0:03:01.6]} 6... d5 {[%clk 0:02:59]}
7. Nc3 {[%clk 0:03:02]} 7... Bb4 {[%clk 0:02:59.3]} 8. Bd2 {[%clk 0:03:01.5]}
8... O-O {[%clk 0:02:59.2]} 9. a3 {[%clk 0:03:01.6]} 9... Ba5 {[%clk 0:02:59.2]}
10. Nf3 {[%clk 0:03:00.7]} 10... Re8 {[%clk 0:02:59.2]} 11. O-O {[%clk
0:03:00.8]} 11... Bg4 {[%clk 0:02:58.1]} 12. h3 {[%clk 0:03:00.5]} 12... Bh5
{[%clk 0:02:58.5]} 13. g4 {[%clk 0:03:00.4]} 13... Bg6 {[%clk 0:02:58.6]} 14.
Nh4 {[%clk 0:02:52.1]} 14... Bb6 {[%clk 0:02:57.8]} 15. Nxg6 {[%clk 0:02:52.2]}
15... hxg6 {[%clk 0:02:58.5]} 16. Na4 {[%clk 0:02:49.3]} 16... Ne5 {[%clk
0:02:57.7]} 17. Nxb6 {[%clk 0:02:49.2]} 17... axb6 {[%clk 0:02:58.6]} 18. Bc3
{[%clk 0:02:48.4]} 18... Qd6 {[%clk 0:02:58.1]} 19. Rc1 {[%clk 0:02:30.1]} 19...
Rad8 {[%clk 0:02:46.1]} 20. Re1 {[%clk 0:02:18.1]} 20... Nexg4 {[%clk
0:02:41.6]} 21. hxg4 {[%clk 0:02:17.9]} 21... Nxg4 {[%clk 0:02:42.5]} 22. e3
{[%clk 0:01:03.5]} 22... Qh2+ {[%clk 0:02:40.2]} 23. Kf1 {[%clk 0:01:04.1]}
23... Qh4 {[%clk 0:02:39.7]} 24. Rc2 {[%clk 0:00:52.9]} 24... c5 {[%clk
0:02:32]} 25. d4 {[%clk 0:00:47.3]} 25... c4 {[%clk 0:02:30.7]} 26. Bf3 {[%clk
0:00:35.6]} 26... Qh3+ {[%clk 0:02:23.2]} 27. Ke2 {[%clk 0:00:19.4]} 27... Nh2
{[%clk 0:01:53.7]} 28. Kd2 {[%clk 0:00:16.5]} 28... Nxf3+ {[%clk 0:01:53.6]} 29.
Kc1 {[%clk 0:00:16.5]} 29... Nxe1 {[%clk 0:01:53.6]} 30. Qxe1 {[%clk 0:00:17]}
30... Qf3 {[%clk 0:01:54.4]} 31. Re2 {[%clk 0:00:16.2]} 31... Re4 {[%clk
0:01:54.8]} 32. Qd2 {[%clk 0:00:16.2]} 32... Rde8 {[%clk 0:01:55.4]} 33. Re1
{[%clk 0:00:16.4]} 33... g5 {[%clk 0:01:55.8]} 34. Rg1 {[%clk 0:00:16.8]} 34...
Rg4 {[%clk 0:01:56.5]} 35. Rf1 {[%clk 0:00:15.8]} 35... Ree4 {[%clk 0:01:56.6]}
36. a4 {[%clk 0:00:15]} 36... Rh4 {[%clk 0:01:56.4]} 37. b3 {[%clk 0:00:13.8]}
37... cxb3 {[%clk 0:01:55.9]} 38. Kb2 {[%clk 0:00:14.4]} 38... Rh1 {[%clk
0:01:56.2]} 39. Rxh1 {[%clk 0:00:14.1]} 39... Qxh1 {[%clk 0:01:57.1]} 40. Kxb3
{[%clk 0:00:14.4]} 40... Qb1+ {[%clk 0:01:57.2]} 41. Bb2 {[%clk 0:00:15]} 41...
Re6 {[%clk 0:01:57]} 42. Qb4 {[%clk 0:00:14.5]} 42... Rc6 {[%clk 0:01:56.7]} 43.
Qb5 {[%clk 0:00:13.7]} 43... Qc2+ {[%clk 0:01:56.3]} 44. Ka2 {[%clk 0:00:14.4]}
44... Qc4+ {[%clk 0:01:56.7]} 45. Qxc4 {[%clk 0:00:14.4]} 45... Rxc4 {[%clk
0:01:57.6]} 46. Kb3 {[%clk 0:00:14.2]} 46... f5 {[%clk 0:01:57.6]} 47. Bc3
{[%clk 0:00:14.7]} 47... g6 {[%clk 0:01:57.7]} 48. f3 {[%clk 0:00:14.5]} 48...
Kf7 {[%clk 0:01:57.8]} 49. e4 {[%clk 0:00:14.9]} 49... fxe4 {[%clk 0:01:56.2]}
50. fxe4 {[%clk 0:00:15.8]} 50... Ke6 {[%clk 0:01:56.8]} 51. exd5+ {[%clk
0:00:15.9]} 51... Kxd5 {[%clk 0:01:57.7]} 52. Kc2 {[%clk 0:00:15.8]} 52... g4
{[%clk 0:01:58.6]} 53. Kd3 {[%clk 0:00:16.1]} 53... Rxc3+ {[%clk 0:01:59]} 54.
Kxc3 {[%clk 0:00:16.3]} 54... g3 {[%clk 0:01:59.9]} 55. Kd3 {[%clk 0:00:17.2]}
55... g2 {[%clk 0:02:00.5]} 56. Kc3 {[%clk 0:00:17.7]} 56... g1=Q {[%clk
0:02:00.5]} 57. Kb4 {[%clk 0:00:18.6]} 57... Qxd4+ {[%clk 0:02:00.5]} 58. Kb5
{[%clk 0:00:19.5]} 58... Qc5# {[%clk 0:02:00.4]} 0-1

[Event "Late-Titled-Tuesday-Blitz-September-19-2023"]
[Site "Chess.com"]
[Date "2023.09.19"]
[Round "3"]
[White "Mike24147"]
[Black "simplerXiao"]
[Result "0-1"]
[WhiteElo "2365"]
[BlackElo "2560"]
[TimeControl "180+1"]
[EndTime "14:25:53 PDT"]
[Termination "simplerXiao won on time"]

1. c4 {[%clk 0:02:58.9]} 1... Nf6 {[%clk 0:02:56]} 2. g3 {[%clk 0:02:58.6]} 2...
e5 {[%clk 0:02:55.6]} 3. Bg2 {[%clk 0:02:58.4]} 3... Bc5 {[%clk 0:02:56.2]} 4.
Nc3 {[%clk 0:02:57]} 4... O-O {[%clk 0:02:56.5]} 5. e3 {[%clk 0:02:57.6]} 5...
c6 {[%clk 0:02:55.8]} 6. Nge2 {[%clk 0:02:53.8]} 6... Re8 {[%clk 0:02:55]} 7.
O-O {[%clk 0:02:52]} 7... e4 {[%clk 0:02:53.8]} 8. d4 {[%clk 0:02:48.7]} 8...
Bf8 {[%clk 0:02:53.9]} 9. d5 {[%clk 0:02:48.1]} 9... d6 {[%clk 0:02:51.7]} 10.
h3 {[%clk 0:02:46.7]} 10... a5 {[%clk 0:02:51]} 11. Nf4 {[%clk 0:02:46.4]} 11...
Na6 {[%clk 0:02:50.3]} 12. g4 {[%clk 0:02:38]} 12... h6 {[%clk 0:02:48.2]} 13.
Rb1 {[%clk 0:02:29.4]} 13... Nc5 {[%clk 0:02:45.8]} 14. b3 {[%clk 0:02:29]}
14... cxd5 {[%clk 0:02:42.2]} 15. cxd5 {[%clk 0:02:27]} 15... Bd7 {[%clk
0:02:39.8]} 16. Ba3 {[%clk 0:02:22.2]} 16... b5 {[%clk 0:02:36.9]} 17. b4 {[%clk
0:02:00.5]} 17... Na6 {[%clk 0:02:28.6]} 18. Qd4 {[%clk 0:01:46.3]} 18... Rc8
{[%clk 0:02:24.8]} 19. Rfc1 {[%clk 0:01:19]} 19... Rc4 {[%clk 0:02:20.2]} 20.
Qa7 {[%clk 0:01:14.9]} 20... Nxb4 {[%clk 0:02:18]} 21. Bf1 {[%clk 0:00:52.5]}
21... Rxc3 {[%clk 0:02:09.9]} 22. Rxc3 {[%clk 0:00:46.9]} 22... Nbxd5 {[%clk
0:02:09.7]} 23. Nxd5 {[%clk 0:00:44.9]} 23... Nxd5 {[%clk 0:02:09.9]} 24. Rcc1
{[%clk 0:00:40.7]} 24... b4 {[%clk 0:02:10.1]} 25. Bb2 {[%clk 0:00:41]} 25...
Be6 {[%clk 0:02:04]} 26. Qd4 {[%clk 0:00:37.9]} 26... h5 {[%clk 0:02:01.5]} 27.
Bb5 {[%clk 0:00:35]} 27... Re7 {[%clk 0:01:52.6]} 28. g5 {[%clk 0:00:31.9]}
28... Rb7 {[%clk 0:01:51.3]} 29. Bc6 {[%clk 0:00:26.9]} 29... Qxg5+ {[%clk
0:01:50.7]} 30. Kh2 {[%clk 0:00:26.8]} 30... Qf5 {[%clk 0:01:45.5]} 31. Bxb7
{[%clk 0:00:20.1]} 31... Qxf2+ {[%clk 0:01:45.4]} 32. Kh1 {[%clk 0:00:19.5]}
32... Qf3+ {[%clk 0:01:43.8]} 33. Kg1 {[%clk 0:00:07.7]} 33... Qg3+ {[%clk
0:01:43.8]} 34. Kh1 {[%clk 0:00:06.7]} 34... Qxh3+ {[%clk 0:01:43.9]} 35. Kg1
{[%clk 0:00:06.3]} 35... Qg3+ {[%clk 0:01:42]} 36. Kh1 {[%clk 0:00:06.7]} 36...
Nxe3 {[%clk 0:01:33.8]} 37. Bxe4 {[%clk 0:00:01.7]} 37... Bg4 {[%clk 0:01:27.6]}
38. Qd2 {[%clk 0:00:01.4]} 38... Qf4 {[%clk 0:01:21.8]} 39. Rg1 {[%clk
0:00:01.3]} 39... Qxe4+ {[%clk 0:01:21.9]} 40. Kh2 {[%clk 0:00:01.4]} 40... Qf4+
{[%clk 0:01:18.1]} 41. Kh1 {[%clk 0:00:01.3]} 41... Bf3+ {[%clk 0:01:17.4]} 0-1

[Event "Late-Titled-Tuesday-Blitz-September-19-2023"]
[Site "Chess.com"]
[Date "2023.09.19"]
[Round "3"]
[White "Lennis93"]
[Black "Squirlolz"]
[Result "1-0"]
[WhiteElo "2732"]
[BlackElo "2494"]
[TimeControl "180+1"]
[EndTime "14:25:56 PDT"]
[Termination "Lennis93 won on time"]

1. Nf3 {[%clk 0:02:04.4]} 1... Nf6 {[%clk 0:02:57.4]} 2. d4 {[%clk 0:02:04.4]}
2... e6 {[%clk 0:02:56]} 3. Bg5 {[%clk 0:02:03.5]} 3... h6 {[%clk 0:02:55.1]} 4.
Bxf6 {[%clk 0:02:03.5]} 4... Qxf6 {[%clk 0:02:54.5]} 5. e4 {[%clk 0:02:04.1]}
5... d5 {[%clk 0:02:50.2]} 6. e5 {[%clk 0:02:04.3]} 6... Qd8 {[%clk 0:02:49.8]}
7. c3 {[%clk 0:02:04.7]} 7... c5 {[%clk 0:02:49.9]} 8. Nbd2 {[%clk 0:02:04]}
8... Nc6 {[%clk 0:02:50]} 9. a3 {[%clk 0:02:03.6]} 9... Qb6 {[%clk 0:02:43.8]}
10. Qb3 {[%clk 0:01:59.3]} 10... Bd7 {[%clk 0:02:34.7]} 11. Qxb6 {[%clk
0:01:56.4]} 11... axb6 {[%clk 0:02:34.2]} 12. Rc1 {[%clk 0:01:55.3]} 12... Be7
{[%clk 0:02:31.5]} 13. Bd3 {[%clk 0:01:55.1]} 13... g5 {[%clk 0:02:28.7]} 14. g4
{[%clk 0:01:32.7]} 14... h5 {[%clk 0:02:25.9]} 15. Rg1 {[%clk 0:01:32.5]} 15...
hxg4 {[%clk 0:01:49.3]} 16. Rxg4 {[%clk 0:01:33.4]} 16... f5 {[%clk 0:01:49.6]}
17. exf6 {[%clk 0:01:32.4]} 17... Bxf6 {[%clk 0:01:49.8]} 18. Rg2 {[%clk
0:01:22.4]} 18... cxd4 {[%clk 0:01:39.2]} 19. cxd4 {[%clk 0:01:23.3]} 19... Nxd4
{[%clk 0:01:39.7]} 20. Rc7 {[%clk 0:01:19.8]} 20... Nxf3+ {[%clk 0:01:20.4]} 21.
Nxf3 {[%clk 0:01:19.2]} 21... Bxb2 {[%clk 0:01:21.3]} 22. Rxb7 {[%clk
0:01:15.5]} 22... Rxa3 {[%clk 0:01:09.8]} 23. Ke2 {[%clk 0:01:03.7]} 23... Bf6
{[%clk 0:00:28.1]} 24. Rxb6 {[%clk 0:00:54.8]} 24... O-O {[%clk 0:00:22.1]} 25.
Nxg5 {[%clk 0:00:54.4]} 25... Bd4 {[%clk 0:00:10.2]} 26. Nxe6+ {[%clk
0:00:52.8]} 26... Kh8 {[%clk 0:00:03.4]} 27. Nxd4 {[%clk 0:00:51.4]} 1-0

[Event "Late-Titled-Tuesday-Blitz-September-19-2023"]
[Site "Chess.com"]
[Date "2023.09.19"]
[Round "3"]
[White "jinxy2009"]
[Black "Arteler"]
[Result "0-1"]
[WhiteElo "2307"]
[BlackElo "2539"]
[TimeControl "180+1"]
[EndTime "14:25:57 PDT"]
[Termination "Arteler won on time"]

1. e4 {[%clk 0:03:00.9]} 1... e6 {[%clk 0:02:50.7]} 2. d4 {[%clk 0:03:00.4]}
2... d5 {[%clk 0:02:51.4]} 3. e5 {[%clk 0:02:47.2]} 3... c5 {[%clk 0:02:51.1]}
4. c3 {[%clk 0:02:47.3]} 4... Qb6 {[%clk 0:02:51.8]} 5. Nf3 {[%clk 0:02:45.6]}
5... Nc6 {[%clk 0:02:52.5]} 6. Bd3 {[%clk 0:02:45.4]} 6... cxd4 {[%clk
0:02:52.5]} 7. O-O {[%clk 0:02:45.1]} 7... Bd7 {[%clk 0:02:52]} 8. Re1 {[%clk
0:02:44.9]} 8... Bc5 {[%clk 0:02:49.8]} 9. b4 {[%clk 0:02:43.5]} 9... Be7 {[%clk
0:02:48.3]} 10. b5 {[%clk 0:02:44]} 10... Na5 {[%clk 0:02:47.4]} 11. Nxd4 {[%clk
0:02:44.6]} 11... Nh6 {[%clk 0:02:34.4]} 12. a4 {[%clk 0:02:26.9]} 12... Nf5
{[%clk 0:02:21]} 13. Nxf5 {[%clk 0:02:07.1]} 13... exf5 {[%clk 0:02:21.9]} 14.
Qf3 {[%clk 0:02:03.4]} 14... O-O {[%clk 0:02:13.7]} 15. Qxd5 {[%clk 0:01:25.2]}
15... Be6 {[%clk 0:02:08.7]} 16. Qf3 {[%clk 0:01:24.6]} 16... Nb3 {[%clk
0:02:08.4]} 17. Ba3 {[%clk 0:00:45.8]} 17... Qd8 {[%clk 0:02:07.1]} 18. Bxe7
{[%clk 0:00:41.4]} 18... Qxe7 {[%clk 0:02:08]} 19. Ra2 {[%clk 0:00:39.5]} 19...
Nd4 {[%clk 0:02:02.8]} 20. cxd4 {[%clk 0:00:39.8]} 20... Bxa2 {[%clk 0:02:03.1]}
21. Nc3 {[%clk 0:00:36.7]} 21... Qb4 {[%clk 0:02:01]} 22. Rc1 {[%clk 0:00:20.6]}
22... Be6 {[%clk 0:01:56.6]} 23. d5 {[%clk 0:00:19.2]} 23... Bd7 {[%clk
0:01:56.5]} 24. Bxf5 {[%clk 0:00:18]} 24... Bxf5 {[%clk 0:01:49.7]} 25. Qxf5
{[%clk 0:00:18.9]} 25... Rac8 {[%clk 0:01:50.4]} 26. Qd3 {[%clk 0:00:18.8]}
26... Rc5 {[%clk 0:01:48.3]} 27. d6 {[%clk 0:00:18.1]} 27... Qb2 {[%clk
0:01:48.5]} 28. Rc2 {[%clk 0:00:11.8]} 28... Qa1+ {[%clk 0:01:48.7]} 29. Nd1
{[%clk 0:00:10.9]} 29... Rxe5 {[%clk 0:01:46.9]} 30. Re2 {[%clk 0:00:05.9]}
30... Rxe2 {[%clk 0:01:23.5]} 31. Qxe2 {[%clk 0:00:06.8]} 31... Qd4 {[%clk
0:01:24.1]} 32. g3 {[%clk 0:00:04.7]} 32... Qxd6 {[%clk 0:01:23.9]} 33. Ne3
{[%clk 0:00:05]} 33... Re8 {[%clk 0:01:13.4]} 34. Qc4 {[%clk 0:00:04.7]} 34...
Qe6 {[%clk 0:01:09.7]} 35. Qc7 {[%clk 0:00:04]} 35... Qe4 {[%clk 0:01:08]} 36.
h4 {[%clk 0:00:02]} 36... h5 {[%clk 0:01:08.3]} 0-1